bitfinex/quotes_BTCUSD_20251016
["timestamp","ask_amount","ask_price","bid_price","bid_amount"]
[1760648041924,5.05281356,108080.0,108070.0,0.00054194]
[1760648044968,0.20888529,108080.0,108070.0,0.00054194]
[1760648045205,0.21384074,108080.0,108070.0,0.00054194]
[1760648045559,0.00383236,108080.0,108070.0,0.00054194]
[1760648045768,0.18888047,108080.0,108070.0,0.01904846]
[1760648046179,0.2282721,108080.0,108070.0,0.00054194]
[1760648046390,0.18888047,108080.0,108070.0,0.00054194]
[1760648048336,0.21384074,108080.0,108070.0,0.00054194]
[1760648048519,5.03280874,108080.0,108070.0,0.00054194]
[1760648048852,5.05281356,108080.0,108070.0,0.00054194]
[1760648049072,5.14249564,108080.0,108070.0,0.00054194]
[1760648049295,0.18509949,108050.0,108040.0,4e-05]
[1760648049512,0.18509949,108050.0,108040.0,9.021e-05]
[1760648050297,0.22340506,108050.0,108040.0,9.021e-05]
[1760648051907,0.26903962,108050.0,108040.0,9.021e-05]
[1760648052366,5.04237306,108050.0,108040.0,9.021e-05]
[1760648052579,5.06237788,108050.0,108040.0,9.021e-05]
[1760648052822,0.24340988,108050.0,108040.0,9.021e-05]
[1760648053068,0.22340506,108050.0,108040.0,9.021e-05]
[1760648053525,0.03854971,108050.0,108040.0,0.18520683]
[1760648053747,0.2236492,108050.0,108040.0,0.22224021]
[1760648053996,0.18509949,108050.0,108040.0,0.22224021]
[1760648054197,0.18509949,108050.0,108040.0,0.18520683]
[1760648054413,0.23287658,108060.0,108040.0,0.18520683]
[1760648054620,0.2129318,108060.0,108040.0,0.18520683]
[1760648055022,0.2129318,108060.0,108040.0,0.18520675]
[1760648055171,0.25077796,108060.0,108050.0,0.18509949]
[1760648055374,0.22293996,108060.0,108050.0,0.20360943]
[1760648055620,0.0378576,108060.0,108050.0,0.18509949]
[1760648055862,0.21290105,108070.0,108050.0,0.18509949]
[1760648056063,0.18506656,108070.0,108060.0,0.01660237]
[1760648056789,0.22289403,108070.0,108060.0,0.01660237]
[1760648057476,0.22289403,108070.0,108050.0,0.18509949]
[1760648057677,0.18508236,108060.0,108050.0,0.18509894]
[1760648058094,0.18508236,108060.0,108040.0,0.19446258]
[1760648058293,0.18508236,108060.0,108040.0,0.2841527]
[1760648058494,0.23214729,108070.0,108050.0,0.18509949]
[1760648058739,0.03782747,108070.0,108060.0,0.18508236]
[1760648058905,0.1850358,108090.0,108070.0,0.18505068]
[1760648058906,0.18503249,108090.0,108070.0,0.18505068]
[1760648059265,0.22354816,108090.0,108070.0,0.18505068]
[1760648059467,0.22354816,108090.0,108080.0,0.01850481]
[1760648059893,0.03851402,108090.0,108080.0,0.22390847]
[1760648060098,0.19426456,108100.0,108080.0,0.20540366]
[1760648060542,0.03689483,108100.0,108090.0,0.20353408]
[1760648060756,0.18551549,108100.0,108090.0,0.18503099]
[1760648060958,0.22284336,108100.0,108090.0,0.18503099]
[1760648061167,0.22284336,108100.0,108080.0,0.20540366]
[1760648062109,0.18503099,108090.0,108070.0,0.19430394]
[1760648062315,0.22284336,108100.0,108080.0,0.18504811]
[1760648062522,0.03782949,108100.0,108090.0,0.20353408]
[1760648062725,0.03782949,108100.0,108090.0,0.18503099]
[1760648064450,0.03782949,108100.0,108090.0,0.27476111]
[1760648064650,0.00050162,108100.0,108090.0,0.27476111]
[1760648065188,0.00050162,108100.0,108090.0,0.27576111]
[1760648065429,0.00050162,108100.0,108090.0,0.27476111]
[1760648065868,0.00050162,108100.0,108090.0,0.27576111]
[1760648069364,0.00300162,108100.0,108090.0,0.27576111]
[1760648071708,0.00300162,108100.0,108090.0,0.27476111]
[1760648071909,0.00300162,108100.0,108090.0,0.27576111]
[1760648072873,0.00300162,108100.0,108090.0,0.00104]
[1760648072874,0.18801549,108100.0,108090.0,0.00104]
[1760648074100,0.18801549,108100.0,108090.0,0.18507099]
[1760648074312,0.18801549,108100.0,108090.0,0.01854309]
[1760648074513,0.18801549,108100.0,108090.0,0.22393288]
[1760648074712,0.00300162,108100.0,108090.0,0.20542979]
[1760648075147,0.18801549,108100.0,108090.0,0.0203988]
[1760648075558,0.18801549,108100.0,108090.0,0.20542979]
[1760648075946,0.00300162,108100.0,108090.0,0.20542979]
[1760648076134,0.18801549,108100.0,108090.0,0.20542979]
[1760648076337,0.00300162,108100.0,108090.0,0.20542979]
[1760648076894,0.00300162,108100.0,108090.0,0.0203988]
[1760648076895,0.18801549,108100.0,108090.0,0.0203988]
[1760648077100,0.00300162,108100.0,108090.0,0.18507099]
[1760648077236,0.18801549,108100.0,108090.0,0.18507099]
[1760648077581,0.18801549,108100.0,108090.0,0.00104]
[1760648078009,0.18801549,108100.0,108090.0,4e-05]
[1760648081615,5.00698349,108100.0,108090.0,4e-05]
[1760648081816,5.14436043,108100.0,108090.0,4e-05]
[1760648082529,0.23571035,108100.0,108090.0,4e-05]
[1760648082741,5.03481384,108100.0,108090.0,4e-05]
[1760648082957,5.05467835,108100.0,108090.0,4e-05]
[1760648083698,5.07962351,108100.0,108090.0,4e-05]
[1760648083928,5.11680579,108100.0,108090.0,4e-05]
[1760648084542,0.26165551,108100.0,108090.0,4e-05]
[1760648084768,0.21684584,108100.0,108090.0,4e-05]
[1760648084999,0.24474589,108100.0,108090.0,4e-05]
[1760648085227,5.08865905,108100.0,108090.0,4e-05]
[1760648085495,5.10852356,108100.0,108090.0,4e-05]
[1760648085766,5.14470584,108100.0,108090.0,4e-05]
[1760648087478,5.1778015,108100.0,108090.0,4e-05]
[1760648087675,5.14990145,108100.0,108090.0,4e-05]
[1760648088044,5.08062351,108100.0,108090.0,4e-05]
[1760648088248,0.26165551,108100.0,108090.0,4e-05]
[1760648089456,0.26065551,108100.0,108090.0,4e-05]
[1760648089652,5.07962351,108100.0,108090.0,4e-05]
[1760648089882,5.20240125,108100.0,108090.0,4e-05]
[1760648090407,5.16930559,108100.0,108090.0,4e-05]
[1760648090795,5.17030559,108100.0,108090.0,4e-05]
[1760648091020,5.28315047,108100.0,108090.0,4e-05]
[1760648091240,0.18508236,108060.0,108050.0,0.01839673]
[1760648091436,0.26689395,108060.0,108050.0,0.01839673]
[1760648091638,0.18509949,108050.0,108040.0,4e-05]
[1760648092360,0.18509949,108050.0,108040.0,9.021e-05]
[1760648093351,0.18509949,108050.0,108040.0,0.20471849]
[1760648093548,0.18509949,108050.0,108040.0,0.18620683]
[1760648093755,0.18509949,108050.0,108040.0,0.00109021]
[1760648093953,0.18509949,108050.0,108040.0,0.18620683]
[1760648094354,0.18509949,108050.0,108040.0,0.22334089]
[1760648094555,0.2233436,108060.0,108040.0,0.22334089]
[1760648094765,0.18509949,108050.0,108040.0,0.22334089]
[1760648094983,0.18509949,108050.0,108040.0,0.18620683]
[1760648095428,0.18509949,108050.0,108040.0,0.00109021]
[1760648095643,0.18509949,108050.0,108040.0,0.18620683]
[1760648096276,0.18509949,108050.0,108040.0,0.00109021]
[1760648097911,5.00406749,108050.0,108040.0,0.00109021]
[1760648098124,5.1385464,108050.0,108040.0,0.00109021]
[1760648098753,5.1385464,108050.0,108040.0,9.021e-05]
[1760648098947,5.1395464,108050.0,108040.0,9.021e-05]
[1760648099418,5.11461408,108050.0,108040.0,9.021e-05]
[1760648099753,5.1395464,108050.0,108040.0,9.021e-05]
[1760648100379,5.04986432,108050.0,108040.0,9.021e-05]
[1760648100590,5.0860466,108050.0,108040.0,9.021e-05]
[1760648100805,5.11928969,108050.0,108040.0,9.021e-05]
[1760648101014,5.09435737,108050.0,108040.0,9.021e-05]
[1760648101239,5.14422201,108050.0,108040.0,9.021e-05]
[1760648101448,5.18403945,108050.0,108040.0,9.021e-05]
[1760648101936,5.05817509,108050.0,108040.0,9.021e-05]
[1760648102213,0.23082076,108050.0,108040.0,9.021e-05]
[1760648102431,5.00406749,108050.0,108040.0,9.021e-05]
[1760648103813,0.18509949,108050.0,108040.0,9.021e-05]
[1760648107973,0.18509949,108050.0,108040.0,0.18520683]
[1760648108187,0.18509949,108050.0,108040.0,0.03712372]
[1760648108418,0.18509949,108050.0,108040.0,0.22224034]
[1760648110061,0.18509949,108050.0,108040.0,9.021e-05]
[1760648110733,0.18509949,108050.0,108040.0,0.20371849]
[1760648110957,0.18509949,108050.0,108040.0,0.18520683]
[1760648111193,0.1664503,108060.0,108040.0,0.18520683]
[1760648111668,0.03267385,108070.0,108060.0,0.18508236]
[1760648111889,0.18990201,108070.0,108060.0,0.20544159]
[1760648113266,0.18990201,108070.0,108060.0,0.20644159]
[1760648113491,0.18990201,108070.0,108060.0,0.001]
[1760648114422,0.18509949,108050.0,108040.0,0.17185756]
[1760648114653,0.18509949,108050.0,108030.0,0.01839673]
[1760648114960,0.18509949,108050.0,108030.0,0.16884305]
[1760648115224,0.18509949,108050.0,108030.0,0.16037964]
[1760648115489,0.18509949,108050.0,108040.0,0.18263382]
[1760648115780,0.19435194,108060.0,108040.0,0.18363382]
[1760648116024,0.19435194,108060.0,108040.0,0.18263382]
[1760648116272,0.19435194,108060.0,108040.0,0.18235498]
[1760648116484,0.18509949,108050.0,108030.0,0.20700535]
[1760648116702,0.18509949,108050.0,108030.0,0.29669547]
[1760648117125,0.18509949,108050.0,108030.0,0.29138493]
[1760648117564,0.18511662,108040.0,108030.0,0.00019062]
[1760648117767,0.18511662,108040.0,108020.0,0.19190755]
[1760648117983,0.18511662,108040.0,108030.0,0.18513375]
[1760648118213,0.18513375,108030.0,108020.0,0.18515089]
[1760648118421,0.18513375,108030.0,108010.0,0.19450583]
[1760648118625,0.18513375,108030.0,108020.0,0.18515089]
[1760648118877,0.19437245,108040.0,108030.0,0.18424308]
[1760648119083,0.18511662,108040.0,108030.0,0.18424308]
[1760648119511,0.21429541,108050.0,108030.0,0.18424308]
[1760648119712,0.19435446,108050.0,108030.0,0.18424308]
[1760648119913,0.18511662,108040.0,108030.0,0.18513375]
[1760648120150,0.21429541,108050.0,108030.0,0.22308797]
[1760648120580,0.21429541,108050.0,108040.0,0.18511662]
[1760648120795,0.19435446,108050.0,108040.0,0.19562599]
[1760648120967,0.19435446,108050.0,108040.0,0.18511662]
[1760648121167,0.21429289,108060.0,108040.0,0.18511662]
[1760648121433,0.21444332,108060.0,108040.0,0.18511662]
[1760648121641,0.21444332,108060.0,108040.0,0.18026655]
[1760648121812,0.21444332,108060.0,108040.0,0.21822125]
[1760648122182,0.18509949,108050.0,108040.0,0.21922125]
[1760648122378,0.18509949,108050.0,108040.0,0.21822125]
[1760648122785,0.18509949,108050.0,108040.0,0.21926125]
[1760648122988,0.18509949,108050.0,108040.0,0.18030655]
[1760648123294,0.18509949,108050.0,108040.0,4e-05]
[1760648123467,0.20504044,108050.0,108040.0,0.00104]
[1760648124463,0.20504044,108050.0,108040.0,4e-05]
[1760648124865,0.20504044,108050.0,108040.0,0.00104]
[1760648125050,0.20504044,108050.0,108040.0,0.01884874]
[1760648125793,0.20504044,108050.0,108040.0,0.00104]
[1760648126354,0.2474804,108050.0,108040.0,0.00104]
[1760648127176,5.12454825,108050.0,108040.0,0.00104]
[1760648127379,0.18511662,108040.0,108030.0,4e-05]
[1760648127607,0.29196226,108040.0,108030.0,4e-05]
[1760648127811,0.34889889,108040.0,108030.0,4e-05]
[1760648128019,5.16409876,108040.0,108030.0,4e-05]
[1760648128603,0.34513076,108040.0,108030.0,4e-05]
[1760648128839,0.18515089,108020.0,108010.0,0.02351447]
[1760648129053,0.18515089,108020.0,108010.0,0.01425607]
[1760648129229,0.18515089,108020.0,108000.0,0.28012651]
[1760648129633,0.21434663,108030.0,108010.0,0.18516803]
[1760648129857,0.18516803,108010.0,108000.0,0.28012651]
[1760648130060,0.18516803,108010.0,108000.0,0.28027716]
[1760648130263,0.18516803,108010.0,108000.0,0.08583365]
[1760648130480,0.18516803,108010.0,108000.0,0.27101883]
[1760648131026,0.18516803,108010.0,108000.0,0.27053827]
[1760648131226,0.20510705,108020.0,108000.0,0.27053827]
[1760648131449,0.20510705,108020.0,108000.0,0.26689381]
[1760648131450,0.18515089,108020.0,108000.0,0.26689381]
[1760648132227,0.18515089,108020.0,108000.0,0.22179535]
[1760648133007,0.18516803,108010.0,108000.0,0.22179535]
[1760648134007,0.18515089,108020.0,108000.0,0.22179535]
[1760648134256,0.18515089,108020.0,108000.0,0.22279535]
[1760648134461,0.18516803,108010.0,108000.0,0.22279535]
[1760648134790,0.18516803,108010.0,108000.0,0.22179535]
[1760648135436,0.18515089,108020.0,108000.0,0.22179535]
[1760648135799,0.18515089,108020.0,108010.0,0.18516803]
[1760648136241,0.18516803,108010.0,108000.0,0.22279535]
[1760648136956,0.52515089,108020.0,108010.0,0.18516803]
[1760648137156,0.52515089,108020.0,108000.0,0.22279535]
[1760648137600,0.52515089,108020.0,108010.0,0.20368483]
[1760648137801,0.52515089,108020.0,108010.0,0.18516803]
[1760648138232,0.52515089,108020.0,108000.0,0.22179535]
[1760648138439,0.52515089,108020.0,108010.0,0.20368483]
[1760648138614,0.52515089,108020.0,108010.0,0.18516803]
[1760648138816,0.52515089,108020.0,108000.0,0.22179535]
[1760648139339,0.52515089,108020.0,108010.0,0.20372483]
[1760648139535,0.52515089,108020.0,108010.0,0.18520803]
[1760648140150,0.52515089,108020.0,108010.0,4e-05]
[1760648140422,0.52515089,108020.0,108010.0,0.0185568]
[1760648141042,0.52515089,108020.0,108010.0,4e-05]
[1760648141459,0.52515089,108020.0,108010.0,0.20351366]
[1760648141673,0.52515089,108020.0,108000.0,0.22179124]
[1760648141888,0.52515089,108020.0,108010.0,0.0185168]
[1760648142938,0.52515089,108020.0,108010.0,0.20368483]
[1760648143122,0.34,108020.0,108010.0,0.18516803]
[1760648143739,0.52515089,108020.0,108000.0,0.22179124]
[1760648143941,0.52515089,108020.0,108010.0,0.0185168]
[1760648144143,0.52515089,108020.0,108010.0,0.18516803]
[1760648144391,0.52515089,108020.0,108010.0,0.18616803]
[1760648144599,0.34,108020.0,108010.0,0.19970827]
[1760648144773,0.52515089,108020.0,108010.0,0.18516803]
[1760648144926,0.52515089,108020.0,108010.0,0.19931527]
[1760648145122,0.52515089,108020.0,108000.0,0.22179124]
[1760648145339,0.18516803,108010.0,108000.0,0.22179124]
[1760648145806,0.52515089,108020.0,108000.0,0.22179124]
[1760648145960,0.18516803,108010.0,108000.0,0.22179124]
[1760648146328,0.18516803,108010.0,108000.0,0.22179535]
[1760648146530,0.52515089,108020.0,108000.0,0.22179535]
[1760648146672,0.18516803,108010.0,108000.0,0.22179535]
[1760648147463,0.18516803,108010.0,108000.0,0.03661017]
[1760648147886,0.18516803,108010.0,108000.0,0.03761017]
[1760648148094,0.18516803,108010.0,108000.0,0.22279535]
[1760648148502,0.18516803,108010.0,108000.0,0.03761017]
[1760648150702,0.52516803,108010.0,108000.0,0.03761017]
[1760648152860,0.34,108010.0,108000.0,0.24131386]
[1760648153068,0.52516803,108010.0,108000.0,0.22279535]
[1760648153675,0.52516803,108010.0,108000.0,0.03761017]
[1760648154233,0.18516803,108010.0,108000.0,0.03761017]
[1760648154785,0.18516803,108010.0,108000.0,0.03726002]
[1760648155190,0.224198,108010.0,108000.0,0.03726002]
[1760648155628,0.224198,108010.0,108000.0,0.0307613]
[1760648157840,0.18516803,108010.0,108000.0,0.0307613]
[1760648158962,5.02411685,108010.0,108000.0,0.0307613]
[1760648159196,5.02411685,108010.0,108000.0,0.0297613]
[1760648159441,5.02411685,108010.0,107970.0,0.53899364]
[1760648159442,0.18521948,107980.0,107970.0,0.53899364]
[1760648159656,0.18521948,107980.0,107970.0,0.34449632]
[1760648159879,0.18521948,107980.0,107970.0,0.34]
[1760648160147,0.18521948,107980.0,107970.0,0.18523663]
[1760648160361,0.18521948,107980.0,107960.0,0.1856439]
[1760648160615,0.18523663,107970.0,107960.0,0.18584397]
[1760648161233,0.18523663,107970.0,107960.0,0.00059018]
[1760648161638,0.18523663,107970.0,107960.0,0.00159018]
[1760648162017,0.18523663,107970.0,107960.0,0.00059018]
[1760648162255,0.18523663,107970.0,107960.0,0.18584397]
[1760648162370,0.21703588,107970.0,107960.0,0.00159018]
[1760648163199,0.21703588,107970.0,107960.0,0.18684397]
[1760648163639,0.21703588,107970.0,107960.0,0.00159018]
[1760648163976,0.21703588,107970.0,107960.0,0.00059018]
[1760648165106,0.59926078,107970.0,107960.0,0.00059018]
[1760648166242,0.61920111,107970.0,107960.0,0.00059018]
[1760648168163,0.64415002,107970.0,107960.0,0.00059018]
[1760648168584,0.67742194,107970.0,107960.0,0.00059018]
[1760648169041,0.64415002,107970.0,107960.0,0.00059018]
[1760648169491,0.67742194,107970.0,107960.0,0.00059018]
[1760648169710,0.67742194,107970.0,107960.0,0.00063018]
[1760648170127,5.47144103,107970.0,107960.0,0.00063018]
[1760648170338,5.52130567,107970.0,107960.0,1e-08]
[1760648171852,5.48803375,107970.0,107960.0,1e-08]
[1760648173807,5.34422179,107960.0,107950.0,1e-08]
[1760648174018,5.53669318,107960.0,107950.0,1e-08]
[1760648174234,5.50355359,107960.0,107950.0,1e-08]
[1760648175106,5.34423895,107950.0,107940.0,1e-08]
[1760648175322,0.18530529,107930.0,107920.0,0.05044]
[1760648175983,0.21014416,107930.0,107920.0,0.05044]
[1760648176234,0.28899327,107930.0,107920.0,0.05044]
[1760648176759,5.4679016,107930.0,107920.0,1e-08]
[1760648176997,5.61218959,107930.0,107920.0,1e-08]
[1760648177229,5.66318352,107930.0,107920.0,1e-08]
[1760648177455,5.63773292,107930.0,107920.0,1e-08]
[1760648177683,5.60329445,107930.0,107920.0,4.001e-05]
[1760648178359,5.63636138,107930.0,107920.0,4.001e-05]
[1760648178578,5.60329445,107930.0,107920.0,4.001e-05]
[1760648179355,5.52950834,107930.0,107920.0,4.001e-05]
[1760648179830,5.47983439,107930.0,107920.0,4.001e-05]
[1760648180068,5.50090839,107930.0,107920.0,4.001e-05]
[1760648180290,5.46785433,107930.0,107920.0,4.001e-05]
[1760648180721,5.50090839,107930.0,107920.0,4.001e-05]
[1760648182541,5.47611679,107930.0,107920.0,4.001e-05]
[1760648182997,5.57364679,107930.0,107920.0,4.001e-05]
[1760648183221,5.47611679,107930.0,107920.0,4.001e-05]
[1760648183674,5.34429046,107920.0,107910.0,1e-08]
[1760648183911,0.18533963,107910.0,107900.0,0.0004]
[1760648184120,5.3890396,107910.0,107900.0,0.0004]
[1760648184345,5.41820828,107910.0,107900.0,0.0004]
[1760648184568,5.45126293,107910.0,107900.0,0.0004]
[1760648185024,5.42209425,107910.0,107900.0,0.0004]
[1760648185272,5.47526852,107910.0,107900.0,0.0004]
[1760648185698,5.5031533,107910.0,107900.0,0.0004]
[1760648186129,5.47009865,107910.0,107900.0,1e-08]
[1760648186332,5.62869324,107910.0,107900.0,1e-08]
[1760648186590,0.52535681,107900.0,107890.0,1e-08]
[1760648186794,5.51618326,107900.0,107890.0,1e-08]
[1760648187206,5.64989554,107900.0,107890.0,1e-08]
[1760648187619,5.69956949,107900.0,107890.0,1e-08]
[1760648187836,0.18545994,107840.0,107830.0,0.23973659]
[1760648188044,0.18545994,107840.0,107830.0,0.0090643]
[1760648188260,0.18545994,107840.0,107830.0,0.00055083]
[1760648188465,0.18545994,107840.0,107830.0,0.00916425]
[1760648188673,0.21335937,107840.0,107830.0,0.00916425]
[1760648189112,0.21335937,107840.0,107830.0,0.19464138]
[1760648189322,0.59323958,107840.0,107830.0,0.00916425]
[1760648189738,0.59323958,107840.0,107830.0,0.00059083]
[1760648190562,0.61307619,107840.0,107830.0,0.00059083]
[1760648191403,5.19685917,107840.0,107830.0,0.00059083]
[1760648191653,5.38231911,107840.0,107830.0,0.00059083]
[1760648191854,5.38231911,107840.0,107830.0,0.00919493]
[1760648192059,5.41675758,107840.0,107830.0,0.00919493]
[1760648192300,0.52547713,107830.0,107820.0,0.00016]
[1760648192496,0.63499582,107830.0,107820.0,0.00926163]
[1760648192704,0.69860301,107830.0,107820.0,0.00426163]
[1760648193124,0.69860301,107830.0,107810.0,0.01727817]
[1760648193125,0.56167662,107820.0,107810.0,0.01727817]
[1760648193330,5.43542028,107820.0,107810.0,0.01727817]
[1760648193530,5.36479953,107820.0,107810.0,0.01727817]
[1760648193748,5.45448161,107820.0,107810.0,0.01727817]
[1760648194725,0.54583153,107820.0,107810.0,0.01727817]
[1760648194936,0.52599492,107820.0,107810.0,0.01727817]
[1760648197310,0.52599492,107820.0,107810.0,0.01227817]
[1760648201566,5.34496292,107820.0,107810.0,0.01227817]
[1760648201802,5.36476999,107820.0,107810.0,0.01227817]
[1760648202009,0.63548407,107820.0,107810.0,0.00706534]
[1760648204392,0.54580199,107820.0,107810.0,0.00706534]
[1760648205132,0.54580199,107820.0,107810.0,0.01567311]
[1760648207739,0.54580199,107820.0,107810.0,0.00706534]
[1760648208178,0.54580199,107820.0,107810.0,0.01568207]
[1760648209123,5.38957569,107820.0,107810.0,0.01568207]
[1760648209371,5.47925777,107820.0,107810.0,0.01568716]
[1760648209784,0.66028977,107820.0,107810.0,0.01568716]
[1760648210282,0.63548407,107820.0,107810.0,0.00706534]
[1760648211276,0.36030765,107820.0,107810.0,0.00706534]
[1760648211495,0.36030765,107820.0,107810.0,0.09257688]
[1760648211496,0.18599492,107820.0,107810.0,0.09257688]
[1760648211905,0.00050058,107820.0,107810.0,0.09257688]
[1760648212214,0.19341829,107820.0,107800.0,0.1856064]
[1760648212418,0.00050058,107820.0,107810.0,0.18551154]
[1760648213080,0.00050058,107820.0,107810.0,0.72516972]
[1760648214364,0.00050058,107820.0,107810.0,0.22169382]
[1760648214537,0.18599492,107820.0,107800.0,0.1856064]
[1760648214878,0.18599492,107820.0,107810.0,0.18551154]
[1760648215513,0.20592373,107820.0,107810.0,0.18551154]
[1760648215716,0.18599492,107820.0,107810.0,0.18551154]
[1760648216350,0.20592373,107820.0,107810.0,0.18555154]
[1760648216762,0.02042939,107820.0,107810.0,0.22270757]
[1760648216986,0.00050058,107820.0,107810.0,0.18559154]
[1760648217220,0.00050058,107820.0,107810.0,0.18563154]
[1760648217753,0.00050058,107820.0,107810.0,0.18567154]
[1760648217953,0.18599492,107820.0,107810.0,0.18567154]
[1760648218195,0.02047556,107820.0,107810.0,0.18567154]
[1760648218571,0.00050058,107820.0,107810.0,0.18567154]
[1760648218756,0.02048107,107820.0,107810.0,0.18567154]
[1760648219803,0.02048393,107820.0,107810.0,0.22279957]
[1760648219959,0.00050058,107820.0,107810.0,0.22279957]
[1760648220404,0.02790874,107820.0,107810.0,0.18567154]
[1760648220630,0.21340308,107820.0,107810.0,0.00016]
[1760648220826,0.20597986,107820.0,107810.0,0.00016]
[1760648221269,0.20597986,107820.0,107810.0,0.18567154]
[1760648222103,0.02048552,107820.0,107810.0,0.18567154]
[1760648222296,0.02048552,107820.0,107810.0,0.22185382]
[1760648222502,0.00538846,107820.0,107810.0,0.22185382]
[1760648222716,0.61978516,107840.0,107820.0,0.18548456]
[1760648222931,0.18547713,107830.0,107820.0,0.18563502]
[1760648223200,0.21028283,107830.0,107820.0,0.1856448]
[1760648223417,0.18547713,107830.0,107820.0,0.1856448]
[1760648223586,0.21028283,107830.0,107820.0,0.1856448]
[1760648223795,0.61978516,107840.0,107820.0,0.1856448]
[1760648224205,0.61978516,107840.0,107820.0,0.22370399]
[1760648224832,0.5867178,107840.0,107830.0,0.18547713]
[1760648225598,0.18547713,107830.0,107820.0,0.00027046]
[1760648227071,0.18547713,107830.0,107820.0,0.00031046]
[1760648227267,0.21028283,107830.0,107820.0,0.00031046]
[1760648227401,0.21028283,107830.0,107820.0,0.00035046]
[1760648227621,0.21028283,107830.0,107820.0,0.1858848]
[1760648227824,0.18547713,107830.0,107820.0,0.00039046]
[1760648228034,0.21028283,107830.0,107820.0,0.00039046]
[1760648228461,0.23508205,107830.0,107820.0,0.00039046]
[1760648228882,0.24335019,107830.0,107820.0,0.00039046]
[1760648229095,0.21028283,107830.0,107820.0,0.00039046]
[1760648229584,0.0248057,107830.0,107820.0,0.1858848]
[1760648229804,0.61978516,107840.0,107820.0,0.1858848]
[1760648230025,0.5867178,107840.0,107830.0,0.18547713]
[1760648230458,0.5867178,107840.0,107820.0,0.1858848]
[1760648230682,0.5867178,107840.0,107830.0,0.18547713]
[1760648231132,0.05197875,107840.0,107830.0,0.18547713]
[1760648231352,0.22005621,107840.0,107830.0,0.18547713]
[1760648231574,0.02717305,107840.0,107830.0,0.18547713]
[1760648231791,0.58332175,107850.0,107830.0,0.18547713]
[1760648232055,0.18545994,107840.0,107830.0,0.18547713]
[1760648232231,0.58332175,107850.0,107830.0,0.18551713]
[1760648232232,0.3648057,107850.0,107830.0,0.18551713]
[1760648232443,0.3648057,107850.0,107830.0,0.22169941]
[1760648232664,0.18545994,107840.0,107830.0,0.22169941]
[1760648233341,0.18545994,107840.0,107830.0,4e-05]
[1760648234011,0.22371924,107840.0,107830.0,4e-05]
[1760648234441,0.24370144,107840.0,107830.0,4e-05]
[1760648234879,0.24370144,107840.0,107830.0,8e-05]
[1760648236210,0.54544214,107840.0,107830.0,8e-05]
[1760648236426,0.54544214,107840.0,107830.0,0.18555713]
[1760648236648,0.0199822,107840.0,107830.0,0.22173941]
[1760648236881,0.18545994,107840.0,107830.0,0.22173941]
[1760648237540,0.18545994,107840.0,107830.0,0.03626228]
[1760648237751,0.18545994,107840.0,107830.0,0.22173941]
[1760648237966,0.18545994,107840.0,107830.0,0.03626228]
[1760648238407,0.18545994,107840.0,107830.0,0.22173941]
[1760648238834,0.54543147,107850.0,107830.0,0.22173941]
[1760648238835,0.5838526,107850.0,107830.0,0.22173941]
[1760648239057,0.18545994,107840.0,107830.0,0.22173941]
[1760648240605,0.18545994,107840.0,107830.0,0.03626228]
[1760648241045,0.18545994,107840.0,107830.0,0.22173941]
[1760648242365,0.5838526,107850.0,107830.0,0.2634288]
[1760648242583,0.5838526,107850.0,107830.0,0.22173941]
[1760648243235,0.18545994,107840.0,107830.0,0.22173941]
[1760648243478,0.5838526,107850.0,107830.0,0.22173941]
[1760648243704,0.18545994,107840.0,107830.0,0.22173941]
[1760648244373,0.18545994,107840.0,107830.0,0.03626228]
[1760648244602,0.18545994,107840.0,107830.0,0.22173941]
[1760648245503,0.18545994,107840.0,107830.0,0.03626228]
[1760648245720,0.18545994,107840.0,107830.0,0.22173941]
[1760648245944,0.18545994,107840.0,107830.0,0.03626228]
[1760648246175,0.18545994,107840.0,107830.0,0.22173941]
[1760648246390,0.18545994,107840.0,107830.0,0.03626228]
[1760648246596,0.18545994,107840.0,107830.0,0.22173941]
[1760648246810,0.18545994,107840.0,107830.0,0.03626228]
[1760648247032,0.18545994,107840.0,107830.0,0.22173941]
[1760648247514,0.18545994,107840.0,107830.0,8e-05]
[1760648247733,0.52545994,107840.0,107830.0,8e-05]
[1760648248865,0.52545994,107840.0,107830.0,0.18555713]
[1760648249294,0.22386387,107850.0,107840.0,0.18545994]
[1760648249510,0.56386387,107850.0,107830.0,0.18555713]
[1760648249954,0.03842113,107850.0,107840.0,0.20400593]
[1760648250159,0.00742322,107850.0,107840.0,0.18545994]
[1760648250389,0.2302439,107870.0,107850.0,0.18544274]
[1760648250615,0.18540836,107870.0,107850.0,0.18544274]
[1760648250845,0.18542555,107860.0,107850.0,0.22162502]
[1760648251054,0.18540836,107870.0,107850.0,0.22162502]
[1760648251268,0.18542555,107860.0,107850.0,0.22162502]
[1760648251680,0.22352915,107870.0,107860.0,0.18542555]
[1760648254234,0.03812079,107870.0,107860.0,0.21749025]
[1760648254432,0.03812079,107870.0,107860.0,0.22160783]
[1760648254578,0.18540836,107870.0,107860.0,0.22160783]
[1760648254793,0.2225691,107870.0,107860.0,0.03622228]
[1760648255707,0.2225691,107870.0,107860.0,4e-05]
[1760648255898,0.2225691,107870.0,107860.0,0.18546555]
[1760648256061,0.2225691,107870.0,107860.0,4e-05]
[1760648258422,0.03656232,107870.0,107860.0,4e-05]
[1760648258654,0.5836033,107870.0,107860.0,4e-05]
[1760648258876,0.6035992,107870.0,107860.0,4e-05]
[1760648259090,0.54540426,107870.0,107860.0,4e-05]
[1760648259298,0.58290197,107870.0,107860.0,4e-05]
[1760648264248,0.56290607,107870.0,107860.0,4e-05]
[1760648265192,0.37749771,107870.0,107860.0,4e-05]
[1760648265413,0.56290607,107870.0,107860.0,0.2040081]
[1760648265575,0.56290607,107870.0,107860.0,0.18546555]
[1760648266175,0.37749771,107870.0,107860.0,0.18546555]
[1760648266792,0.37749771,107870.0,107860.0,0.22164783]
[1760648267699,0.03749771,107870.0,107860.0,0.2623606]
[1760648268107,0.52539117,107880.0,107870.0,0.18540836]
[1760648268310,0.34,107880.0,107870.0,0.18540836]
[1760648268514,0.56240092,107880.0,107870.0,0.18540836]
[1760648269303,0.37700975,107880.0,107870.0,0.18540836]
[1760648269512,0.56240092,107880.0,107870.0,0.18540836]
[1760648270782,0.56240092,107880.0,107870.0,0.213862]
[1760648270963,0.56240092,107880.0,107870.0,0.18544836]
[1760648272794,0.03700975,107880.0,107870.0,0.18544836]
[1760648273055,0.18539117,107880.0,107870.0,0.18544836]
[1760648273253,0.34,107890.0,107880.0,0.18539117]
[1760648273447,0.34,107890.0,107880.0,0.22207623]
[1760648273686,0.52537399,107890.0,107880.0,0.03668506]
[1760648273833,0.52537399,107890.0,107880.0,0.22207623]
[1760648274043,0.5631242,107890.0,107880.0,0.22207623]
[1760648274447,0.37775021,107890.0,107880.0,0.22207623]
[1760648275421,0.37775021,107890.0,107880.0,0.22211623]
[1760648276451,0.37775021,107890.0,107880.0,0.27276874]
[1760648278608,0.03775021,107890.0,107880.0,0.27276874]
[1760648278838,0.18532663,107920.0,107900.0,0.52535681]
[1760648279073,0.00742322,107910.0,107900.0,0.18535681]
[1760648279298,0.19274804,107920.0,107910.0,0.18533963]